fUST/lending_fUST_20240813
["ID","MTS","AMOUNT","RATE_DAILY","PERIOD"]
[334747282,1723535439741,-400.0,0.0001137,2]
[334747283,1723535439751,-823.0,0.00011729,2]
[334747284,1723535439760,-823.0,0.00011729,2]
[334747285,1723535439770,-201.84402284,0.00012119,2]
[334747286,1723535439779,-400.0,0.0001232,2]
[334747287,1723535439788,-306.0,0.00012509,2]
[334747288,1723535439797,-154.2877007,0.00012509,2]
[334747289,1723535439807,-563.43041577,0.00012822,2]
[334747290,1723535439816,-3755.09950666,0.000129,2]
[334747291,1723535439826,-1152.0,0.00012902,2]
[334747292,1723535439835,-1152.0,0.00012902,2]
[334747293,1723535439845,-1000.0,0.00013,3]
[334747294,1723535439854,-150.112234,0.00013,2]
[334747295,1723535439865,-563.43041575,0.00013016,2]
[334747296,1723535439877,-66244.1834808,0.00013093,2]
[334747297,1723535439888,-235.1570113,0.00013142,2]
[334747298,1723535439899,-24900.0,0.00013142,2]
[334747300,1723535439910,-563.43041575,0.0001321,2]
[334747301,1723535439919,-2345.01658686,0.00013295,2]
[334747302,1723535439930,-132488.366962,0.00013295,2]
[334747303,1723535439940,-82493.71221951,0.00013305,2]
[334747318,1723535440410,-2430.76089825,0.00013305,2]
[334747319,1723535440420,-151.0,0.00013305,2]
[334747320,1723535440430,-151.587539,0.00013305,2]
[334747321,1723535440440,-151.0,0.00013305,2]
[334747322,1723535440450,-502.183519,0.00013305,2]
[334747323,1723535440459,-502.183519,0.00013305,2]
[334747324,1723535440469,-151.0,0.00013305,2]
[334747325,1723535440489,-151.0,0.00013305,2]
[334747326,1723535440498,-151.0,0.00013305,2]
[334747327,1723535440508,-729.490634,0.00013305,2]
[334747328,1723535440517,-729.490634,0.00013305,2]
[334747329,1723535440528,-151.0,0.00013305,2]
[334747330,1723535440539,-623.899935,0.00013305,2]
[334747331,1723535440548,-151.0,0.00013305,2]
[334747332,1723535440557,-623.899935,0.00013305,2]
[334747333,1723535440567,-151.0,0.00013305,2]
[334747334,1723535440577,-151.0,0.00013305,2]
[334747335,1723535440587,-471.3622,0.00013305,2]
[334747336,1723535440596,-471.3622,0.00013305,2]
[334747337,1723535440608,-151.0,0.00013305,2]
[334747338,1723535440618,-167.423305,0.00013305,2]
[334747339,1723535440628,-151.0,0.00013305,2]
[334747340,1723535440637,-167.423305,0.00013305,2]
[334747341,1723535440647,-151.0,0.00013305,2]
[334747342,1723535440656,-151.0,0.00013305,2]
[334747343,1723535440665,-151.0,0.00013305,2]
[334747344,1723535440675,-151.0,0.00013305,2]
[334747345,1723535440685,-685.348919,0.00013305,2]
[334747346,1723535440694,-685.348919,0.00013305,2]
[334747347,1723535440704,-151.0,0.00013305,2]
[334747348,1723535440713,-223.784138,0.00013305,2]
[334747349,1723535440725,-151.0,0.00013305,2]
[334747350,1723535440734,-313.25088,0.00013305,2]
[334747351,1723535440744,-313.25088,0.00013305,2]
[334747352,1723535440754,-151.0,0.00013305,2]
[334747353,1723535440763,-985.499064,0.00013305,2]
[334747354,1723535440772,-985.499064,0.00013305,2]
[334747355,1723535440782,-151.0,0.00013305,2]
[334747356,1723535440792,-151.359644,0.00013305,2]
[334747357,1723535440802,-455.618449,0.00013305,2]
[334747358,1723535440811,-455.618449,0.00013305,2]
[334747359,1723535440820,-151.0,0.00013305,2]
[334747360,1723535440830,-151.0,0.00013305,2]
[334747361,1723535440839,-492.330777,0.00013305,2]
[334747362,1723535440849,-492.330777,0.00013305,2]
[334747363,1723535440858,-7701.6426725,0.00013326,2]
[334747364,1723535440873,-70220.6264334,0.00013326,2]
[334747365,1723535441246,-5323.40502986,0.0001296,2]
[334747366,1723535441261,-290.84316921,0.00013135,2]
[334747367,1723535441272,-213.97388,0.00013305,2]
[334747368,1723535441287,-54566.0978561,0.00013326,2]
[334747369,1723535441301,-151.0,0.00013326,2]
[334747370,1723535441314,-151.0,0.00013326,2]
[334747371,1723535441326,-623.899935,0.00013326,2]
[334747372,1723535441342,-623.899935,0.00013326,2]
[334747373,1723535441355,-151.0,0.00013326,2]
[334747374,1723535441368,-151.0,0.00013326,2]
[334747375,1723535441379,-471.3622,0.00013326,2]
[334747376,1723535441390,-471.3622,0.00013326,2]
[334747377,1723535441400,-151.0,0.00013326,2]
[334747378,1723535441410,-167.423305,0.00013326,2]
[334747379,1723535441421,-205.504568,0.00013326,2]
[334747380,1723535441433,-167.423305,0.00013326,2]
[334747381,1723535441445,-151.0,0.00013326,2]
[334747382,1723535441458,-151.877628,0.00013326,2]
[334747383,1723535441468,-151.0,0.00013326,2]
[334747384,1723535441479,-151.0,0.00013326,2]
[334747385,1723535441492,-685.348919,0.00013326,2]
[334747386,1723535441504,-685.348919,0.00013326,2]
[334747387,1723535441516,-285.529318,0.00013326,2]
[334747388,1723535441528,-151.0,0.00013326,2]
[334747389,1723535441540,-313.25088,0.00013326,2]
[334747390,1723535441552,-313.25088,0.00013326,2]
[334747391,1723535441563,-151.0,0.00013326,2]
[334747392,1723535441577,-985.499064,0.00013326,2]
[334747393,1723535441591,-985.499064,0.00013326,2]
[334747394,1723535441603,-157.157976,0.00013326,2]
[334747395,1723535441616,-455.618449,0.00013326,2]
[334747396,1723535441628,-455.618449,0.00013326,2]
[334747397,1723535441639,-153.512548,0.00013326,2]
[334747398,1723535441650,-151.0,0.00013326,2]
[334747399,1723535441663,-492.330777,0.00013326,2]
[334747400,1723535441675,-492.330777,0.00013326,2]
[334747401,1723535441688,-153.0,0.00013331,2]
[334747402,1723535441700,-306.0,0.00013331,2]
[334747403,1723535441712,-1670.74719108,0.00013336,2]
[334747404,1723535441726,-510.06692442,0.00013336,2]
[334747405,1723535441737,-834.32224871,0.00013336,2]
[334747406,1723535441750,-410.70557422,0.00013336,2]
[334747407,1723535441763,-158.63524894,0.00013336,2]
[334747408,1723535441774,-14402.20252978,0.00013336,2]
[334747409,1723535441786,-285.02752751,0.00013336,2]
[334747410,1723535441797,-37481.54165234,0.00013336,2]
[334747411,1723535441808,-152.804265,0.00013336,2]
[334747412,1723535441819,-151.0,0.00013336,2]
[334747413,1723535441831,-502.183519,0.00013336,2]
[334747414,1723535441842,-502.183519,0.00013336,2]
[334747415,1723535441852,-151.0,0.00013336,2]
[334747416,1723535441863,-151.0,0.00013336,2]
[334747417,1723535441874,-294.510599,0.00013336,2]
[334747418,1723535441885,-729.490634,0.00013336,2]
[334747419,1723535441896,-729.490634,0.00013336,2]
[334747420,1723535441907,-623.899935,0.00013336,2]
[334747421,1723535441918,-151.0,0.00013336,2]
[334747422,1723535441929,-623.899935,0.00013336,2]
[334747423,1723535441940,-151.0,0.00013336,2]
[334747424,1723535441951,-151.0,0.00013336,2]
[334747425,1723535441962,-471.3622,0.00013336,2]
[334747426,1723535441972,-471.3622,0.00013336,2]
[334747427,1723535441983,-151.0,0.00013336,2]
[334747428,1723535441994,-167.423305,0.00013336,2]
[334747429,1723535442005,-167.423305,0.00013336,2]
[334747430,1723535442016,-151.0,0.00013336,2]
[334747431,1723535442028,-151.0,0.00013336,2]
[334747432,1723535442040,-151.0,0.00013336,2]
[334747433,1723535442051,-685.348919,0.00013336,2]
[334747434,1723535442062,-685.348919,0.00013336,2]
[334747435,1723535442074,-151.0,0.00013336,2]
[334747436,1723535442084,-313.25088,0.00013336,2]
[334747437,1723535442095,-313.25088,0.00013336,2]
[334747438,1723535442106,-985.499064,0.00013336,2]
[334747439,1723535442117,-985.499064,0.00013336,2]
[334747440,1723535442128,-455.618449,0.00013336,2]
[334747441,1723535442139,-455.618449,0.00013336,2]
[334747442,1723535442150,-151.0,0.00013336,2]
[334747443,1723535442161,-492.330777,0.00013336,2]
[334747444,1723535442172,-492.330777,0.00013336,2]
[334747445,1723535442183,-1379.79745767,0.00013342,2]
[334747446,1723535442194,-600.0,0.00013373,2]
[334747447,1723535442205,-600.0,0.00013373,2]
[334747448,1723535442216,-600.0,0.00013373,2]
[334747449,1723535442227,-600.0,0.00013373,2]
[334747450,1723535442239,-150.112233,0.000134,2]
[334747451,1723535442250,-251.76632,0.000134,2]
[334747452,1723535442261,-156.520577,0.000134,2]
[334747453,1723535442272,-502.183519,0.000134,2]
[334747454,1723535442284,-502.183519,0.000134,2]
[334747455,1723535442294,-151.0,0.000134,2]
[334747456,1723535442306,-729.490634,0.000134,2]
[334747457,1723535442318,-729.490634,0.000134,2]
[334747458,1723535442328,-151.0,0.000134,2]
[334747459,1723535442340,-563.43041575,0.00013404,2]
[334747460,1723535442352,-151.0,0.00013421,2]
[334747461,1723535442366,-623.899935,0.00013421,2]
[334747462,1723535442377,-623.899935,0.00013421,2]
[334747463,1723535442388,-151.0,0.00013421,2]
[334747464,1723535442399,-151.0,0.00013421,2]
[334747465,1723535442410,-471.3622,0.00013421,2]
[334747466,1723535442421,-471.3622,0.00013421,2]
[334747467,1723535442434,-156.822198,0.00013421,2]
[334747468,1723535442447,-167.423305,0.00013421,2]
[334747469,1723535442459,-167.423305,0.00013421,2]
[334747470,1723535442471,-155.177024,0.00013421,2]
[334747471,1723535442481,-151.0,0.00013421,2]
[334747472,1723535442492,-151.0,0.00013421,2]
[334747473,1723535442504,-685.348919,0.00013421,2]
[334747474,1723535442515,-685.348919,0.00013421,2]
[334747475,1723535442526,-151.0,0.00013421,2]
[334747476,1723535442539,-57367.21119224,0.00013442,2]
[334747482,1723535443318,-2527.6,0.00010959,2]
[334747483,1723535443327,-451.57897,0.00013305,2]
[334747484,1723535443336,-451.57897,0.00013326,2]
[334747485,1723535443346,-451.57897,0.00013336,2]
[334747486,1723535443355,-19075.06008207,0.00013442,2]
[334747487,1723535443364,-151.0,0.00013442,2]
[334747488,1723535443374,-151.0,0.00013442,2]
[334747489,1723535443383,-151.0,0.00013442,2]
[334747491,1723535443393,-151.0,0.00013442,2]
[334747493,1723535443402,-151.0,0.00013442,2]
[334747495,1723535443411,-151.0,0.00013442,2]
[334747496,1723535443421,-153.88691,0.00013442,2]
[334747497,1723535443430,-153.88691,0.00013442,2]
[334747498,1723535443441,-502.183519,0.00013442,2]
[334747499,1723535443451,-502.183519,0.00013442,2]
[334747500,1723535443463,-154.181858,0.00013442,2]
[334747501,1723535443474,-151.0,0.00013442,2]
[334747502,1723535443484,-729.490634,0.00013442,2]
[334747503,1723535443493,-729.490634,0.00013442,2]
[334747504,1723535443503,-623.899935,0.00013442,2]
[334747505,1723535443512,-623.899935,0.00013442,2]
[334747506,1723535443522,-151.0,0.00013442,2]
[334747507,1723535443534,-151.0,0.00013442,2]
[334747508,1723535443544,-471.3622,0.00013442,2]
[334747509,1723535443556,-471.3622,0.00013442,2]
[334747510,1723535443567,-167.423305,0.00013442,2]
[334747511,1723535443578,-167.423305,0.00013442,2]
[334747512,1723535443590,-151.0,0.00013442,2]
[334747513,1723535443601,-151.0,0.00013442,2]
[334747514,1723535443616,-685.348919,0.00013442,2]
[334747515,1723535443627,-685.348919,0.00013442,2]
[334747516,1723535443636,-151.0,0.00013442,2]
[334747517,1723535443646,-313.25088,0.00013442,2]
[334747518,1723535443658,-313.25088,0.00013442,2]
[334747519,1723535443668,-985.499064,0.00013442,2]
[334747520,1723535443677,-985.499064,0.00013442,2]
[334747521,1723535443687,-455.618449,0.00013442,2]
[334747522,1723535443697,-455.618449,0.00013442,2]
[334747523,1723535443706,-156.302187,0.00013442,2]
[334747524,1723535443716,-492.330777,0.00013442,2]
[334747525,1723535443726,-492.330777,0.00013442,2]
[334747526,1723535443736,-451.57897,0.00013442,2]
[334747527,1723535443745,-150.112233,0.000135,2]
[334747528,1723535443755,-306.6145265,0.00013563,2]
[334747529,1723535443764,-153.0,0.00013563,2]
[334747530,1723535443774,-207.3665351,0.00013563,2]
[334747531,1723535443783,-164.697629,0.00013588,2]
[334747532,1723535443793,-151.0,0.00013588,2]
[334747533,1723535443803,-151.0,0.00013588,2]
[334747534,1723535443812,-151.0,0.00013588,2]
[334747535,1723535443822,-205.254268,0.00013588,2]
[334747536,1723535443832,-151.0,0.00013588,2]
[334747537,1723535443842,-153.88691,0.00013588,2]
[334747538,1723535443851,-153.88691,0.00013588,2]
[334747539,1723535443861,-563.43041575,0.00013598,2]
[334747540,1723535443872,-25000.0,0.00013598,2]
[334747541,1723535443882,-709.79944843,0.00013599,2]
[334747542,1723535443898,-150.112233,0.000136,2]
[334747543,1723535443910,-154.74467129,0.00013673,2]
[334747544,1723535443921,-200.0,0.00013673,2]
[334747545,1723535443933,-200.0,0.00013673,2]
[334747546,1723535443943,-151.0,0.00013688,2]
[334747547,1723535443955,-151.0,0.00013688,2]
[334747548,1723535443965,-151.0,0.00013688,2]
[334747549,1723535443975,-151.0,0.00013688,2]
[334747550,1723535443984,-153.88691,0.00013688,2]
[334747551,1723535443994,-153.88691,0.00013688,2]
[334747552,1723535444003,-500.0,0.00013698,2]
[334747553,1723535444013,-500.0,0.00013698,2]
[334747554,1723535444022,-275.0,0.00013698,2]
[334747555,1723535444031,-500.0,0.00013698,2]
[334747556,1723535444040,-500.0,0.00013698,2]
[334747557,1723535444049,-492.91606459,0.00013698,2]
[334747558,1723535444059,-500.0,0.00013698,2]
[334747559,1723535444070,-500.0,0.00013698,2]
[334747560,1723535444081,-500.0,0.00013698,2]
[334747561,1723535444093,-500.0,0.00013698,2]
[334747562,1723535444103,-500.0,0.00013698,2]
[334747563,1723535444115,-240.0,0.00013698,2]
[334747564,1723535444126,-500.0,0.00013698,2]
[334747565,1723535444135,-500.0,0.00013698,2]
[334747566,1723535444144,-500.0,0.00013698,2]
[334747567,1723535444154,-500.0,0.00013698,2]
[334747568,1723535444163,-365.7726281,0.00013698,2]
[334747569,1723535444173,-5988.76086081,0.00013698,2]
[334747570,1723535444182,-265.22901055,0.00013698,2]
[334747571,1723535444192,-500.0,0.00013698,2]
[334747572,1723535444201,-150.01,0.00013698,2]
[334747573,1723535444210,-500.0,0.00013698,2]
[334747574,1723535444220,-500.0,0.00013698,2]
[334747575,1723535444239,-500.0,0.00013698,2]
[334747576,1723535444248,-205.37050875,0.00013698,2]
[334747577,1723535444258,-1344.27,0.00013698,2]
[334747578,1723535444269,-499.4146091,0.00013698,2]
[334747579,1723535444278,-500.0,0.00013698,2]
[334747580,1723535444288,-500.0,0.00013698,2]
[334747581,1723535444298,-511.09,0.00013698,2]
[334747582,1723535444308,-505.13049909,0.00013698,2]
[334747583,1723535444317,-500.0,0.00013698,2]
[334747584,1723535444327,-503.81834367,0.00013698,2]
[334747585,1723535444337,-504.73011531,0.00013698,2]
[334747586,1723535444348,-500.0,0.00013698,2]
[334747587,1723535444357,-538.07066586,0.00013698,2]
[334747588,1723535444367,-528.13880111,0.00013698,2]
[334747589,1723535444376,-500.0,0.00013698,2]
[334747590,1723535444385,-500.0,0.00013698,2]
[334747591,1723535444395,-500.0,0.00013698,2]
[334747592,1723535444405,-500.0,0.00013698,2]
[334747593,1723535444415,-500.0,0.00013698,2]
[334747594,1723535444424,-500.0,0.00013698,2]
[334747595,1723535444434,-500.0,0.00013698,2]
[334747596,1723535444444,-500.0,0.00013698,2]
[334747597,1723535444454,-500.0,0.00013698,2]
[334747598,1723535444463,-500.0,0.00013698,2]
[334747599,1723535444473,-500.0,0.00013698,2]
[334747600,1723535444482,-611.49648298,0.00013698,2]
[334747601,1723535444491,-562.62179469,0.00013698,2]
[334747602,1723535444502,-500.0,0.00013698,2]
[334747603,1723535444511,-501.45092338,0.00013698,2]
[334747604,1723535444520,-500.0,0.00013698,2]
[334747605,1723535444533,-501.68221551,0.00013698,2]
[334747606,1723535444543,-500.0,0.00013698,2]
[334747607,1723535444552,-500.0,0.00013698,2]
[334747608,1723535444561,-323.33109887,0.00013698,2]
[334747609,1723535444572,-500.0,0.00013698,2]
[334747610,1723535444580,-500.0,0.00013698,2]
[334747611,1723535444590,-500.0,0.00013698,2]
[334747612,1723535444599,-500.0,0.00013698,2]
[334747613,1723535444610,-505.95516428,0.00013698,2]
[334747614,1723535444619,-506.8220351,0.00013698,2]
[334747615,1723535444628,-500.0,0.00013698,2]
[334747616,1723535444637,-500.0,0.00013698,2]
[334747617,1723535444646,-372.94823206,0.00013698,2]
[334747618,1723535444656,-500.0,0.00013698,2]
[334747619,1723535444665,-500.0,0.00013698,2]
[334747620,1723535444674,-500.0,0.00013698,2]
[334747621,1723535444683,-500.0,0.00013698,2]
[334747622,1723535444692,-500.0,0.00013698,2]
[334747623,1723535444701,-177.63322244,0.00013698,2]
[334747624,1723535444711,-714.4,0.00013698,2]
[334747625,1723535444720,-500.0,0.00013698,2]
[334747626,1723535444730,-500.0,0.00013698,2]
[334747627,1723535444740,-503.51802139,0.00013698,2]
[334747628,1723535444749,-500.0,0.00013698,2]
[334747629,1723535444758,-500.0,0.00013698,2]
[334747630,1723535444768,-500.0,0.00013698,2]
[334747631,1723535444778,-418.53740048,0.00013698,2]
[334747632,1723535444788,-500.0,0.00013698,2]
[334747633,1723535444798,-506.89748179,0.00013698,2]
[334747634,1723535444808,-502.85385857,0.00013698,2]
[334747635,1723535444818,-500.0,0.00013698,2]
[334747636,1723535444830,-500.0,0.00013698,2]
[334747637,1723535444843,-151.0,0.00013698,2]
[334747638,1723535444854,-151.0,0.00013698,2]
[334747639,1723535444865,-500.0,0.00013698,2]
[334747640,1723535444876,-151.0,0.00013698,2]
[334747641,1723535444887,-151.0,0.00013698,2]
[334747642,1723535444897,-295.926655,0.00013698,2]
[334747643,1723535444908,-500.0,0.00013698,2]
[334747644,1723535444918,-500.0,0.00013698,2]
[334747645,1723535444928,-500.0,0.00013698,2]
[334747646,1723535444939,-500.0,0.00013698,2]
[334747647,1723535444950,-500.0,0.00013698,2]
[334747648,1723535444960,-500.0,0.00013698,2]
[334747649,1723535444971,-500.0,0.00013698,2]
[334747650,1723535444981,-500.0,0.00013698,2]
[334747651,1723535444990,-500.0,0.00013698,2]
[334747652,1723535444999,-500.0,0.00013698,2]
[334747653,1723535445009,-500.0,0.00013698,2]
[334747654,1723535445019,-500.0,0.00013698,2]
[334747655,1723535445029,-500.0,0.00013698,2]
[334747656,1723535445040,-500.0,0.00013698,2]
[334747657,1723535445050,-500.0,0.00013698,2]
[334747658,1723535445059,-500.0,0.00013698,2]
[334747659,1723535445068,-500.0,0.00013698,2]
[334747660,1723535445077,-505.5316567,0.00013698,2]
[334747661,1723535445087,-500.0,0.00013698,2]
[334747662,1723535445096,-500.0,0.00013698,2]
[334747663,1723535445105,-500.0,0.00013698,2]
[334747664,1723535445115,-500.0,0.00013698,2]
[334747665,1723535445124,-802.81,0.00013698,2]
[334747666,1723535445133,-500.0,0.00013698,2]
[334747667,1723535445145,-234.77098945,0.00013698,2]
[334747668,1723535445154,-500.0,0.00013698,2]
[334747669,1723535445164,-500.0,0.00013698,2]
[334747670,1723535445173,-156.80996114,0.00013698,2]
[334747671,1723535445182,-500.0,0.00013698,2]
[334747672,1723535445191,-500.0,0.00013698,2]
[334747673,1723535445202,-500.0,0.00013698,2]
[334747674,1723535445213,-583.25366431,0.00013698,2]
[334747675,1723535445225,-500.0,0.00013698,2]
[334747676,1723535445235,-504.36745766,0.00013698,2]
[334747677,1723535445245,-500.0,0.00013698,2]
[334747678,1723535445255,-500.0,0.00013698,2]
[334747679,1723535445264,-500.0,0.00013698,2]
[334747680,1723535445274,-151.0,0.00013698,2]
[334747681,1723535445283,-506.26458535,0.00013698,2]
[334747682,1723535445293,-151.0,0.00013698,2]
[334747683,1723535445302,-151.0,0.00013698,2]
[334747684,1723535445311,-151.0,0.00013698,2]
[334747685,1723535445320,-503.10663543,0.00013698,2]
[334747686,1723535445330,-185.0,0.00013698,2]
[334747687,1723535445339,-151.0,0.00013698,2]
[334747688,1723535445349,-500.0,0.00013698,2]
[334747689,1723535445358,-500.0,0.00013698,2]
[334747690,1723535445368,-510.57096044,0.00013698,2]
[334747691,1723535445378,-504.90036474,0.00013698,2]
[334747692,1723535445387,-500.0,0.00013698,2]
[334747693,1723535445396,-508.34672954,0.00013698,2]
[334747694,1723535445405,-506.95200765,0.00013698,2]
[334747695,1723535445414,-512.88543441,0.00013698,2]
[334747696,1723535445424,-500.0,0.00013698,2]
[334747697,1723535445435,-500.0,0.00013698,2]
[334747698,1723535445445,-508.66403734,0.00013698,2]
[334747699,1723535445456,-506.65835242,0.00013698,2]
[334747700,1723535445467,-500.0,0.00013698,2]
[334747701,1723535445477,-500.0,0.00013698,2]
[334747702,1723535445486,-500.0,0.00013698,2]
[334747703,1723535445497,-500.0,0.00013698,2]
[334747704,1723535445507,-500.0,0.00013698,2]
[334747705,1723535445517,-500.0,0.00013698,2]
[334747706,1723535445529,-509.5476719,0.00013698,2]
[334747707,1723535445540,-508.12700078,0.00013698,2]
[334747708,1723535445550,-500.0,0.00013698,2]
[334747709,1723535445562,-500.0,0.00013698,2]
[334747710,1723535445574,-500.0,0.00013698,2]
[334747711,1723535445584,-500.0,0.00013698,2]
[334747712,1723535445595,-500.0,0.00013698,2]
[334747713,1723535445606,-500.0,0.00013698,2]
[334747715,1723535445618,-484.56118132,0.00013698,2]
[334747716,1723535445628,-502.43448606,0.00013698,2]
[334747717,1723535445639,-500.0,0.00013698,2]
[334747718,1723535445648,-500.0,0.00013698,2]
[334747719,1723535445658,-500.0,0.00013698,2]
[334747720,1723535445667,-500.0,0.00013698,2]
[334747721,1723535445677,-500.0,0.00013698,2]
[334747722,1723535445686,-500.0,0.00013698,2]
[334747723,1723535445696,-500.0,0.00013698,2]
[334747724,1723535445706,-500.0,0.00013698,2]
[334747725,1723535445715,-500.0,0.00013698,2]
[334747726,1723535445724,-500.0,0.00013698,2]
[334747727,1723535445734,-881.79,0.00013698,2]
[334747728,1723535445743,-500.0,0.00013698,2]
[334747729,1723535445752,-222.63837823,0.00013698,2]
[334747730,1723535445761,-500.0,0.00013698,2]
[334747731,1723535445771,-641.36,0.00013698,2]
[334747732,1723535445781,-627.27,0.00013698,2]
[334747733,1723535445792,-528.31,0.00013698,2]
[334747734,1723535445802,-500.0,0.00013698,2]
[334747735,1723535445811,-500.0,0.00013698,2]
[334747736,1723535445822,-500.0,0.00013698,2]
[334747737,1723535445833,-500.0,0.00013698,2]
[334747738,1723535445845,-500.0,0.00013698,2]
[334747739,1723535445856,-500.0,0.00013698,2]
[334747740,1723535445867,-500.0,0.00013698,2]
[334747741,1723535445877,-500.0,0.00013698,2]
[334747742,1723535445887,-500.0,0.00013698,2]
[334747743,1723535445896,-503.61535578,0.00013698,2]
[334747744,1723535445905,-500.0,0.00013698,2]
[334747745,1723535445915,-500.0,0.00013698,2]
[334747746,1723535445925,-500.0,0.00013698,2]
[334747747,1723535445934,-500.0,0.00013698,2]
[334747748,1723535445946,-448.39632702,0.00013698,2]
[334747749,1723535445955,-500.0,0.00013698,2]
[334747750,1723535445964,-524.72752938,0.00013698,2]
[334747751,1723535445974,-500.0,0.00013698,2]
[334747752,1723535445983,-608.07,0.00013698,2]
[334747753,1723535445993,-500.0,0.00013698,2]
[334747754,1723535446004,-504.62380583,0.00013698,2]
[334747755,1723535446014,-500.0,0.00013698,2]
[334747756,1723535446024,-500.0,0.00013698,2]
[334747757,1723535446034,-500.0,0.00013698,2]
[334747758,1723535446044,-500.0,0.00013698,2]
[334747759,1723535446054,-500.0,0.00013698,2]
[334747760,1723535446063,-500.0,0.00013698,2]
[334747761,1723535446072,-500.0,0.00013698,2]
[334747762,1723535446082,-500.0,0.00013698,2]
[334747763,1723535446233,-500.0,0.00013698,2]
[334747764,1723535446244,-500.0,0.00013698,2]
[334747765,1723535446254,-500.0,0.00013698,2]
[334747766,1723535446264,-500.0,0.00013698,2]
[334747767,1723535446274,-634.20756766,0.00013698,2]
[334747768,1723535446283,-502.24325675,0.00013698,2]
[334747769,1723535446293,-419.08746111,0.00013698,2]
[334747770,1723535446303,-513.25896786,0.00013698,2]
[334747771,1723535446313,-500.0,0.00013698,2]
[334747772,1723535446323,-515.75883106,0.00013698,2]
[334747773,1723535446332,-500.0,0.00013698,2]
[334747774,1723535446342,-151.0,0.00013698,2]
[334747775,1723535446352,-151.0,0.00013698,2]
[334747776,1723535446362,-500.0,0.00013698,2]
[334747777,1723535446373,-151.0,0.00013698,2]
[334747778,1723535446384,-500.0,0.00013698,2]
[334747779,1723535446396,-151.0,0.00013698,2]
[334747781,1723535446407,-151.0,0.00013698,2]
[334747782,1723535446418,-151.0,0.00013698,2]
[334747783,1723535446429,-500.0,0.00013698,2]
[334747784,1723535446440,-151.0,0.00013698,2]
[334747785,1723535446450,-151.0,0.00013698,2]
[334747786,1723535446461,-151.0,0.00013698,2]
[334747787,1723535446471,-151.0,0.00013698,2]
[334747788,1723535446481,-151.0,0.00013698,2]
[334747789,1723535446490,-163.445485,0.00013698,2]
[334747790,1723535446501,-500.0,0.00013698,2]
[334747791,1723535446513,-502.29710798,0.00013698,2]
[334747792,1723535446524,-500.0,0.00013698,2]
[334747793,1723535446540,-500.0,0.00013698,2]
[334747794,1723535446552,-500.0,0.00013698,2]
[334747795,1723535446563,-500.0,0.00013698,2]
[334747796,1723535446574,-503.19093749,0.00013698,2]
[334747797,1723535446584,-622.53624703,0.00013698,2]
[334747798,1723535446597,-510.26480008,0.00013698,2]
[334747799,1723535446607,-500.0,0.00013698,2]
[334747800,1723535446618,-500.0,0.00013698,2]
[334747801,1723535446629,-151.0,0.00013698,2]
[334747802,1723535446641,-151.0,0.00013698,2]
[334747803,1723535446651,-151.0,0.00013698,2]
[334747804,1723535446661,-151.0,0.00013698,2]
[334747805,1723535446671,-502.82057391,0.00013698,2]
[334747806,1723535446681,-151.0,0.00013698,2]